bitfinex/quotes_ETHUSD_20260106
["timestamp","ask_amount","ask_price","bid_price","bid_amount"]
[1767690247090,0.90387383,3219.0,3218.4,0.814]
[1767690247594,0.90387383,3219.0,3218.4,3.92112638]
[1767690247769,0.90387383,3219.3,3218.4,3.92112638]
[1767690247969,0.90387383,3219.3,3218.4,4.89601135]
[1767690248875,0.002,3218.9,3218.4,4.89601135]
[1767690249082,0.90587383,3219.2,3218.5,0.8003161]
[1767690249399,0.90587383,3219.2,3218.4,3.92112638]
[1767690249563,0.002,3219.2,3218.4,4.89601135]
[1767690249867,0.002,3219.2,3218.5,0.97488497]
[1767690250590,0.002,3219.2,3218.6,0.97488497]
[1767690254098,0.90387383,3219.1,3218.4,0.814]
[1767690254403,0.90387383,3219.1,3218.5,0.39211565]
[1767690254605,0.90387383,3219.1,3218.4,3.10711793]
[1767690254809,0.90387383,3219.1,3218.6,0.814]
[1767690256201,0.002,3219.2,3218.7,0.97488497]
[1767690258903,0.002,3219.2,3218.8,0.97488497]
[1767690261621,0.002,3218.9,3218.8,0.97488497]
[1767690261789,0.002,3219.2,3218.8,1.15377347]
[1767690263117,0.002,3219.4,3218.8,1.15377347]
[1767690263317,0.90587383,3219.4,3218.8,0.1788885]
[1767690263616,0.002,3219.4,3218.8,0.1788885]
[1767690263819,0.002,3219.4,3218.8,1.15377347]
[1767690264014,0.002,3219.9,3219.3,0.97488497]
[1767690264387,0.90587383,3219.9,3219.3,0.1788885]
[1767690264710,0.90587383,3219.9,3219.1,0.814]
[1767690265291,3.10578296,3219.8,3219.1,0.814]
[1767690265913,6.21156592,3219.8,3219.1,0.814]
[1767690266789,6.21156592,3219.8,3219.1,1.78888497]
[1767690268228,0.90387383,3219.7,3218.8,1.15377347]
[1767690268413,0.90387383,3219.6,3218.9,0.814]
[1767690268614,0.90387383,3219.6,3218.8,0.97488497]
[1767690268920,0.90387383,3219.6,3218.8,1.78888497]
[1767690269691,3.10607237,3219.5,3218.8,1.78888497]
[1767690269928,6.21214474,3219.5,3218.8,1.78888497]
[1767690270091,3.10607237,3219.5,3218.8,1.78888497]
[1767690270625,3.09004645,3219.5,3218.8,1.96777347]
[1767690270842,6.19611882,3219.5,3218.8,1.96777347]
[1767690270986,3.09004645,3219.5,3218.8,1.96777347]
[1767690271910,3.09004645,3219.5,3218.9,0.91311947]
[1767690272715,3.10588044,3219.7,3218.9,0.91311947]
[1767690272916,3.10588044,3219.7,3218.9,1.10372027]
[1767690273117,6.21176088,3219.7,3218.9,1.10372027]
[1767690273509,0.002,3219.2,3218.9,1.10372027]
[1767690278729,0.002,3219.2,3218.9,1.0046008]
[1767690278901,0.002,3219.2,3218.9,0.814]
[1767690279432,0.95623886,3219.2,3218.4,0.91311947]
[1767690279646,0.95623886,3219.2,3218.3,3.10721777]
[1767690279803,0.002,3219.2,3218.5,0.91311947]
[1767690280002,0.002,3219.2,3218.7,0.91311947]
[1767690280219,0.002,3219.2,3218.2,4.74311947]
[1767690280402,0.002,3219.2,3218.5,0.91311947]
[1767690280799,0.002,3219.2,3218.6,0.91311947]
[1767690281004,0.002,3219.2,3218.7,1.31513501]
[1767690281426,0.002,3219.2,3218.7,0.91311947]
[1767690286448,0.002,3219.2,3218.4,0.91311947]
[1767690286943,0.002,3219.2,3219.0,0.001]
[1767690291086,0.002,3219.2,3219.0,0.91411947]
[1767690291238,0.95623886,3219.2,3219.0,0.001]
[1767690291550,0.002,3219.2,3219.0,0.001]
[1767690291945,3.10807965,3219.5,3219.0,0.91411947]
[1767690292631,0.002,3219.5,3219.0,0.91411947]
[1767690293133,3.10809426,3219.5,3219.0,0.91411947]
[1767690294062,0.002,3219.5,3219.0,0.91411947]
[1767690295935,0.98784302,3219.5,3219.0,0.001]
[1767690296158,3.10616885,3219.4,3219.0,0.001]
[1767690296345,0.98584302,3219.3,3219.0,0.001]
[1767690296545,0.98584302,3219.3,3218.5,3.83]
[1767690297028,0.98584302,3219.3,3218.6,0.97146983]
[1767690297235,3.10616885,3219.4,3218.6,0.97146983]
[1767690297436,0.98584302,3219.3,3218.6,1.76232312]
[1767690298364,3.10616885,3219.4,3218.6,1.76232312]
[1767690298665,3.10616885,3219.4,3218.8,0.001]
[1767690298974,3.10811654,3219.5,3218.8,0.001]
[1767690299338,0.98584302,3219.4,3218.8,0.001]
[1767690300143,3.10811654,3219.5,3218.8,0.001]
[1767690300347,0.98784302,3219.5,3218.8,0.001]
[1767690301542,0.98164207,3219.5,3218.8,0.001]
[1767690301739,0.98164207,3219.5,3218.8,0.17733231]
[1767690302048,0.814,3219.6,3218.8,1.07829629]
[1767690302236,0.814,3219.7,3218.8,1.07829629]
[1767690302637,0.814,3219.7,3218.9,0.90096398]
[1767690302834,0.814,3219.7,3219.0,1.31946564]
[1767690303454,0.814,3219.7,3219.0,0.90096398]
[1767690304368,3.91993277,3219.7,3219.0,0.90096398]
[1767690306682,4.87197934,3219.7,3219.0,0.90096398]
[1767690307184,7.16391211,3219.7,3219.0,0.90096398]
[1767690307480,7.97791211,3219.7,3219.0,0.90096398]
[1767690307966,4.87197934,3219.7,3219.0,0.90096398]
[1767690310781,7.97791211,3219.7,3219.3,0.001]
[1767690311980,0.95204657,3219.6,3219.3,0.001]
[1767690313358,0.814,3219.7,3219.3,0.001]
[1767690313558,3.91988898,3219.7,3219.3,0.001]
[1767690314185,7.02577796,3219.7,3219.3,0.001]
[1767690314390,0.95204657,3219.6,3219.3,0.001]
[1767690315574,0.814,3219.7,3219.3,0.90196398]
[1767690316456,3.91989188,3219.7,3219.3,0.001]
[1767690318001,7.16361249,3219.8,3219.3,0.001]
[1767690318191,4.05782953,3219.8,3219.3,0.001]
[1767690318706,3.10578296,3219.8,3219.3,0.001]
[1767690319201,0.95204657,3219.7,3219.3,0.001]
[1767690319900,3.10578296,3219.8,3219.3,0.001]
[1767690320392,0.95204657,3219.7,3219.3,0.001]
[1767690320572,3.10578296,3219.8,3219.3,0.001]
[1767690320993,4.05782953,3219.8,3219.3,0.001]
[1767690323166,7.16361249,3219.8,3219.3,0.001]
[1767690323394,4.05782953,3219.8,3219.3,0.001]
[1767690324491,0.95204657,3219.7,3219.3,0.001]
[1767690324993,3.10578296,3219.8,3219.3,0.001]
[1767690325865,4.05782953,3219.8,3219.3,0.001]
[1767690326065,0.95204657,3219.8,3219.3,0.001]
[1767690326377,0.002,3219.9,3219.3,0.90196398]
[1767690326891,0.002,3219.9,3219.4,0.90096398]
[1767690327094,0.95204657,3220.3,3219.6,0.90096398]
[1767690327095,0.814,3220.3,3219.6,0.90096398]
[1767690330304,0.002,3220.5,3219.6,0.90096398]
[1767690330490,3.10717002,3220.5,3219.6,0.90096398]
[1767690330693,3.10717002,3220.5,3219.7,0.90096398]
[1767690331678,4.62812885,3220.2,3219.5,0.55300928]
[1767690331889,0.91965276,3219.8,3218.8,3.2840399]
[1767690332202,4.62812885,3219.9,3219.0,0.90652718]
[1767690332401,3.10578296,3219.8,3219.0,0.90652718]
[1767690334400,6.21156592,3219.8,3219.0,0.90652718]
[1767690335102,0.91965276,3219.7,3218.9,10.042185]
[1767690335308,0.91965276,3219.7,3219.0,1.02195173]
[1767690335516,0.91965276,3219.7,3218.8,0.17733231]
[1767690335517,0.91965276,3219.7,3218.9,10.042185]
[1767690336611,4.02557838,3219.7,3218.9,10.042185]
[1767690336823,0.91965276,3219.6,3218.9,10.042185]
[1767690337614,3.10592562,3219.7,3219.0,0.90652718]
[1767690338440,3.10578714,3219.8,3219.0,0.90652718]
[1767690338729,4.0254399,3219.8,3219.0,0.90652718]
[1767690339732,7.13122704,3219.8,3219.0,0.90652718]
[1767690339933,7.13122704,3219.8,3218.8,0.17733231]
[1767690339934,0.91965276,3219.7,3218.9,9.03095]
[1767690340116,0.91965276,3219.7,3218.8,1.08385949]
[1767690340317,0.91965276,3219.6,3218.8,0.17733231]
[1767690340523,0.91965276,3219.5,3218.8,0.17733231]
[1767690340842,3.10599995,3219.6,3218.8,1.08385949]
[1767690341033,3.10599995,3219.6,3218.9,1.32559709]
[1767690341739,3.91992555,3219.7,3218.9,1.32559709]
[1767690344244,7.94550386,3219.7,3218.9,1.32559709]
[1767690344544,7.94550386,3219.7,3218.9,0.90652718]
[1767690345044,4.83957831,3219.7,3218.9,0.90652718]
[1767690346415,4.83957831,3219.7,3219.2,0.001]
[1767690346616,3.91992555,3219.7,3219.2,0.001]
[1767690348142,0.814,3219.7,3219.2,0.001]
[1767690348310,3.9198795,3219.7,3219.2,0.001]
[1767690349343,0.814,3219.7,3219.2,0.001]
[1767690350055,3.91990428,3219.7,3219.2,0.001]
[1767690350352,0.814,3219.7,3219.2,0.90752718]
[1767690350554,0.814,3219.8,3219.2,0.90752718]
[1767690352046,0.814,3219.8,3219.3,0.90652718]
[1767690352453,0.002,3220.2,3219.3,0.90652718]
[1767690352751,0.91965276,3220.1,3219.2,0.40240736]
[1767690352956,0.91965276,3220.1,3219.2,3.50871058]
[1767690353253,0.002,3220.2,3219.4,0.90652718]
[1767690353462,0.92165276,3220.2,3220.1,0.01916623]
[1767690354141,0.002,3220.2,3220.1,0.01916623]
[1767690354971,0.002,3220.3,3220.1,0.01916623]
[1767690355147,0.002,3220.3,3220.1,0.92569341]
[1767690355464,0.00068025,3220.3,3220.1,0.92569341]
[1767690355968,0.00068025,3220.3,3220.1,0.01916623]
[1767690356964,0.00068025,3220.3,3220.1,1.01836597]
[1767690358381,0.002,3220.5,3220.2,0.99919974]
[1767690358570,0.002,3220.5,3220.1,0.01916623]
[1767690358932,0.002,3220.3,3220.1,0.01916623]
[1767690359134,0.00131975,3220.2,3220.1,1.01836597]
[1767690359334,0.002,3220.3,3220.1,0.01916623]
[1767690359534,0.002,3220.5,3220.1,0.01916623]
[1767690361247,0.00131975,3220.4,3220.1,0.01916623]
[1767690363438,0.002,3220.5,3220.1,0.42778271]
[1767690363641,0.002,3220.5,3220.2,0.9613265]
[1767690363972,0.002,3220.5,3220.1,0.01916623]
[1767690364169,0.002,3220.5,3220.1,0.98049273]
[1767690364471,0.816,3220.8,3220.1,0.98049273]
[1767690364710,3.11973503,3221.5,3220.1,0.98049273]
[1767690364711,0.814,3221.4,3220.8,0.9613265]
[1767690364985,0.81875795,3221.3,3220.5,0.9613265]
[1767690365278,0.81875795,3221.3,3220.6,0.9613265]
[1767690365494,0.00131975,3220.7,3220.6,0.9613265]
[1767690365661,7.84387463,3221.4,3220.6,0.9613265]
[1767690365979,7.84387463,3221.4,3220.3,0.9613265]
[1767690365980,0.82134629,3221.3,3220.3,0.9613265]
[1767690366151,0.82134629,3221.3,3220.4,0.40666878]
[1767690366574,0.82134629,3221.3,3220.4,1.36799528]
[1767690366782,0.82134629,3221.3,3220.4,4.47315804]
[1767690366979,0.82134629,3221.3,3220.5,0.9613265]
[1767690367184,7.03013785,3221.3,3220.5,0.9613265]
[1767690367380,0.82392629,3221.2,3220.5,0.9613265]
[1767690367777,0.82524604,3221.2,3220.5,0.9613265]
[1767690368286,0.82645322,3221.1,3220.1,0.01916623]
[1767690368878,0.82894909,3220.9,3220.1,0.01916623]
[1767690369183,0.82894909,3220.7,3220.1,0.01916623]
[1767690369480,6.20925178,3221.0,3220.1,0.01916623]
[1767690369481,3.93357498,3221.0,3220.1,0.01916623]
[1767690369688,3.91854096,3221.1,3220.2,0.9613265]
[1767690369889,3.91854096,3221.1,3220.3,1.36992431]
[1767690370187,3.91854096,3221.1,3220.3,0.9613265]
[1767690370898,3.91854096,3221.1,3220.4,0.9623265]
[1767690371060,0.814,3221.1,3220.4,0.9623265]
[1767690372791,0.00131975,3221.0,3220.4,0.9623265]
[1767690373166,0.00131975,3221.0,3220.5,0.9613265]
[1767690373866,0.00131975,3221.0,3220.7,0.9613265]
[1767690375665,3.1061978,3221.5,3221.2,0.9613265]
[1767690375666,0.002,3221.5,3221.2,0.9613265]
[1767690377005,3.95367505,3222.0,3221.2,0.9613265]
[1767690377306,4.76767505,3222.0,3221.2,0.9613265]
[1767690377676,0.00131975,3221.4,3221.2,0.9613265]
[1767690377894,4.76767505,3222.0,3221.2,0.9613265]
[1767690378405,3.91773956,3222.0,3221.3,0.9613265]
[1767690378570,7.02149016,3222.0,3221.3,0.9613265]
[1767690378770,7.02149016,3222.0,3220.2,7.72965811]
[1767690378771,0.85641794,3221.8,3220.8,0.9613265]
[1767690379004,0.002,3221.8,3221.0,0.9613265]
[1767690379208,0.816,3221.8,3221.0,0.9613265]
[1767690379582,0.002,3221.8,3221.0,0.9613265]
[1767690379788,0.00131975,3221.7,3221.2,0.9613265]
[1767690381806,3.10308446,3222.6,3221.7,0.9613265]
[1767690382106,3.91608446,3222.6,3221.7,0.9613265]
[1767690382313,0.47770315,3222.5,3221.7,0.9613265]
[1767690382478,1.29070315,3222.5,3221.7,0.9613265]
[1767690383446,6.20616892,3222.6,3221.7,0.9613265]
[1767690383447,3.10298817,3222.7,3221.7,0.9613265]
[1767690383613,0.002,3221.8,3221.7,0.9613265]
[1767690383811,0.00131975,3222.4,3221.8,0.9613265]
[1767690385312,3.10337336,3222.3,3221.6,11.901055]
[1767690385521,0.86724986,3222.2,3221.6,1.28623815]
[1767690385686,0.86724986,3222.2,3221.3,0.9613265]
[1767690386617,0.86724986,3222.2,3221.3,3.1043325]
[1767690386810,0.86724986,3222.2,3221.3,10.645655]
[1767690387130,0.86724986,3222.2,3221.4,5.44050258]
[1767690387314,0.813,3222.3,3221.5,0.9613265]
[1767690388812,0.00131975,3222.2,3221.5,0.9613265]
[1767690389113,0.00131975,3222.2,3221.7,0.9613265]
[1767690390007,0.813,3222.5,3221.8,0.9613265]
[1767690390318,3.91599956,3222.7,3221.9,0.9613265]
[1767690390521,0.813,3222.7,3221.9,0.9613265]
[1767690391401,0.002,3222.8,3222.1,0.98698296]
[1767690392118,0.00131975,3222.6,3222.1,0.98698296]
[1767690392318,0.00131975,3222.6,3222.3,0.98698296]
[1767690392923,0.002,3222.8,3222.3,0.98698296]
[1767690393135,0.002,3223.1,3222.3,0.98698296]
[1767690393327,0.813,3223.3,3222.5,0.98698296]
[1767690393492,3.91544082,3223.3,3222.5,0.98698296]
[1767690393687,3.91544082,3223.3,3222.5,1.39600617]
[1767690394197,3.91544082,3223.3,3222.6,0.98698296]
[1767690394603,0.88674421,3223.7,3222.6,0.98698296]
[1767690394807,3.11735091,3224.0,3222.4,4.09020027]
[1767690394808,0.00131975,3223.2,3222.4,4.09020027]
[1767690394996,0.00131975,3223.2,3222.5,4.09015292]
[1767690395198,0.00131975,3223.2,3222.6,1.39599825]
[1767690395397,0.88857019,3223.5,3222.6,4.49901627]
[1767690395604,3.99080133,3223.5,3222.6,4.49901627]
[1767690395823,7.09303247,3223.5,3222.6,1.39599825]
[1767690396024,0.002,3222.7,3222.6,0.40901529]
[1767690396197,0.89035918,3223.4,3222.5,0.98698296]
[1767690396628,6.20446228,3223.5,3222.5,0.98698296]
[1767690397419,0.00131975,3223.3,3222.5,0.98698296]
[1767690400029,0.89756408,3223.3,3222.5,0.98698296]
[1767690400528,0.89756408,3223.3,3222.3,0.98698296]
[1767690400903,0.9123825,3223.2,3222.3,0.98698296]
[1767690401101,0.89683524,3223.0,3222.3,0.98698296]
[1767690401300,0.89683524,3222.8,3221.9,10.307209]
[1767690401812,6.20597634,3222.7,3221.8,0.98698296]
[1767690402003,7.10341579,3222.7,3221.8,0.98698296]
[1767690402421,3.10298817,3222.7,3221.8,0.98698296]
[1767690403141,6.20597634,3222.7,3221.8,0.98698296]
[1767690403308,0.813,3222.6,3221.8,0.98698296]
[1767690403937,3.10318076,3222.5,3221.8,0.98698296]
[1767690404518,3.91744961,3222.6,3221.8,0.98698296]
[1767690405634,0.00131975,3222.6,3221.9,0.98698296]
[1767690406421,0.00131975,3222.6,3222.0,0.98698296]
[1767690406624,0.00131975,3222.6,3222.2,0.98698296]
[1767690407532,0.91593135,3223.7,3222.4,0.98698296]
[1767690407715,0.82854726,3223.4,3222.4,0.98698296]
[1767690408131,3.93095065,3223.4,3222.4,0.98698296]
[1767690408340,3.10212185,3223.6,3222.6,0.98698296]
[1767690408525,1.72949259,3223.5,3222.6,0.98698296]
[1767690408720,0.01754726,3223.3,3222.6,0.98698296]
[1767690409061,0.01554726,3223.1,3222.3,0.98698296]
[1767690409546,0.01554726,3222.9,3222.2,0.001]
[1767690409844,0.91760226,3222.7,3222.2,0.001]
[1767690410213,0.91760226,3222.5,3222.2,0.001]
[1767690410410,0.01554726,3222.5,3222.2,0.001]
[1767690411745,3.10308446,3222.6,3222.2,0.001]
[1767690412048,4.00562573,3222.7,3222.2,0.001]
[1767690412547,0.00131975,3222.4,3222.2,0.001]
[1767690415928,0.00131975,3222.4,3222.0,0.98698296]
[1767690416269,0.00131975,3222.4,3221.5,7.97558587]
[1767690416567,0.00131975,3222.4,3221.6,1.91933551]
[1767690417058,0.90763321,3222.4,3221.6,0.87885859]
[1767690417287,0.90763321,3222.4,3221.6,2.124332]
[1767690417557,0.01686701,3222.4,3221.6,1.04047692]
[1767690418555,3.12022371,3222.4,3221.6,1.04047692]
[1767690419556,6.22358041,3222.4,3221.6,1.04047692]
[1767690420432,0.92335256,3222.1,3221.5,0.001]
[1767690420639,0.813,3222.0,3221.5,0.001]
[1767690420940,0.813,3222.0,3221.5,1.04147692]
[1767690422157,0.813,3222.0,3221.5,1.02777692]
[1767690422666,3.91667481,3222.0,3221.5,1.02777692]
[1767690422872,0.813,3222.0,3221.5,1.02777692]
[1767690423456,0.00131975,3221.9,3221.5,1.02777692]
[1767690423762,0.00131975,3221.9,3221.0,1.00548177]
[1767690423925,0.01554726,3221.7,3221.0,1.00548177]
[1767690425160,3.12069565,3221.9,3221.0,1.00548177]
[1767690425355,0.39336957,3221.8,3221.0,1.00548177]
[1767690426261,3.1193759,3221.9,3221.0,1.00548177]
[1767690427161,6.22320454,3221.9,3221.0,1.00548177]
[1767690427463,0.00131975,3221.8,3221.0,1.00548177]
[1767690429532,0.92653067,3221.8,3221.0,1.00548177]
[1767690429857,0.01554726,3221.7,3221.0,1.00548177]
[1767690431464,3.10404767,3221.6,3221.0,1.00548177]
[1767690432842,6.20809534,3221.6,3221.0,1.00548177]
[1767690433043,0.00131975,3221.5,3221.0,1.00548177]
[1767690433434,0.00131975,3221.5,3221.3,0.001]
[1767690434759,3.11953593,3221.7,3221.3,0.001]
[1767690434760,3.11867012,3221.7,3221.3,0.001]
[1767690436638,0.00131975,3221.6,3221.3,0.001]
[1767690436836,0.00131975,3221.6,3220.4,3.106142]
[1767690436837,0.92863251,3221.4,3220.4,3.106142]
[1767690437136,0.92863251,3221.4,3220.5,2.581903]
[1767690437737,0.92904092,3221.2,3220.5,2.581903]
[1767690438058,1.75758818,3221.5,3220.5,5.16290839]
[1767690438377,3.93270687,3221.5,3220.6,1.00548177]
[1767690439436,3.91715961,3221.5,3220.6,1.00548177]
[1767690440161,0.00131975,3221.4,3220.6,1.00548177]
[1767690442570,0.93198065,3221.4,3220.6,1.00548177]
[1767690442887,0.93198065,3221.4,3220.6,1.52187234]
[1767690443268,0.93198065,3221.4,3220.7,1.00548177]
[1767690443642,0.00131975,3221.4,3220.7,1.00548177]
[1767690445741,0.00131975,3221.4,3220.9,0.001]
[1767690446163,0.9334961,3221.4,3220.9,0.001]
[1767690447079,4.03779829,3221.4,3220.9,0.001]
[1767690449966,7.14210048,3221.4,3220.9,0.001]
[1767690451290,4.03779829,3221.4,3220.9,0.001]
[1767690452291,0.9334961,3221.4,3220.9,0.001]
[1767690452464,4.03776167,3221.4,3220.9,0.001]
[1767690452666,0.48663089,3221.3,3220.9,0.001]
[1767690453474,3.10443313,3221.2,3220.9,0.001]
[1767690453682,0.93499049,3221.2,3220.9,0.001]
[1767690454088,3.60655272,3221.3,3220.9,0.001]
[1767690455089,4.54222479,3221.3,3220.9,0.001]
[1767690455394,0.36074493,3221.2,3220.9,0.001]
[1767690455595,3.46525577,3221.2,3220.9,0.001]
[1767690455896,0.95154786,3221.1,3220.4,0.001]
[1767690456098,1.7490006,3221.0,3220.4,0.001]
[1767690456263,0.17645479,3220.9,3220.4,0.001]
[1767690457072,0.17645479,3220.9,3220.2,3.10539324]
[1767690457288,0.93532409,3220.9,3220.1,8.75824862]
[1767690457698,0.93532409,3220.9,3220.1,7.72803357]
[1767690457901,0.813,3221.0,3220.2,1.03021505]
[1767690459177,0.00131975,3220.9,3220.2,1.03021505]
[1767690459699,0.95283099,3220.9,3220.2,1.03021505]
[1767690460401,0.00131975,3220.9,3220.3,1.03021505]
[1767690460697,0.00131975,3220.9,3220.4,1.90603506]
[1767690461002,0.00131975,3220.9,3220.5,1.03021505]
[1767690461203,4.04052624,3220.9,3219.8,4.13592998]
[1767690461369,0.93445822,3220.8,3219.9,1.03021505]
[1767690461571,0.93445822,3220.8,3220.1,1.03021505]
[1767690461768,0.94927473,3220.4,3219.6,1.03021505]
[1767690461974,0.93372747,3220.2,3219.5,0.001]
[1767690462206,0.813,3220.3,3219.6,1.03021505]
[1767690462574,0.813,3220.3,3219.7,1.03021505]
[1767690462777,0.813,3220.3,3219.8,1.03021505]
[1767690463009,0.78662282,3220.3,3219.8,1.03021505]
[1767690463902,4.03551717,3220.8,3219.8,1.03021505]
[1767690464107,0.813,3220.7,3219.8,1.03021505]
[1767690464404,1.72741077,3220.7,3219.8,1.03021505]
[1767690464600,2.21219309,3220.7,3219.8,1.03021505]
[1767690464806,0.00131975,3220.2,3219.8,1.03021505]
[1767690465108,3.12038691,3220.8,3219.8,1.03021505]
[1767690465302,3.1203975,3220.8,3219.8,1.03021505]
[1767690465496,0.01554726,3220.8,3219.8,1.03021505]
[1767690465698,3.12042144,3220.8,3220.0,1.03021505]
[1767690466374,0.01554726,3220.8,3220.0,1.03021505]
[1767690466980,0.00131975,3220.7,3220.0,1.03021505]
[1767690469311,0.00131975,3220.7,3220.3,0.001]
[1767690470988,0.01554726,3220.6,3220.3,0.001]
[1767690472509,3.12063573,3220.6,3220.3,0.001]
[1767690474506,0.00131975,3220.5,3220.3,0.001]
[1767690474889,0.00131975,3220.5,3220.3,1.03121505]
[1767690475624,0.00131975,3220.5,3219.8,0.814]
[1767690475807,0.00131975,3220.5,3219.9,1.0736865]
[1767690482194,0.00131975,3220.5,3220.2,0.001]
[1767690483316,1.03689584,3220.3,3219.6,1.05733896]
[1767690484120,4.14222105,3220.3,3219.6,1.05733896]
[1767690484327,0.01554726,3220.4,3219.6,1.05733896]
[1767690485289,1.03689584,3220.3,3219.6,1.05733896]
[1767690485504,1.0524431,3220.2,3219.5,0.001]
[1767690485734,1.0524431,3220.2,3219.2,0.001]
[1767690485940,1.0524431,3220.2,3219.3,1.05733896]
[1767690486105,3.10549361,3220.1,3219.3,1.05733896]
[1767690486422,1.0524431,3219.9,3219.2,0.001]
[1767690486795,1.03689584,3219.8,3219.2,0.001]
[1767690488548,4.14268209,3219.8,3219.2,0.001]
[1767690488821,1.03689584,3219.7,3218.8,0.001]
[1767690489023,1.03689584,3219.7,3218.8,1.05833896]
[1767690489502,1.03821559,3219.7,3218.8,1.05833896]
[1767690490329,3.10597589,3219.6,3218.8,1.05833896]
[1767690491522,4.14281292,3219.7,3218.8,1.05833896]
[1767690491999,1.03689584,3219.6,3218.8,1.05833896]
[1767690492500,3.10582757,3219.8,3218.8,1.05833896]
[1767690493208,4.95662996,3219.9,3218.8,1.05833896]
[1767690493530,0.00131975,3219.5,3218.8,1.05833896]
[1767690493738,0.00131975,3219.5,3219.1,1.05633896]
[1767690493924,0.00131975,3219.5,3219.1,1.05433896]
[1767690494234,0.00131975,3219.5,3219.1,1.04633896]
[1767690494408,0.00131975,3219.5,3219.1,1.04133896]
[1767690494615,0.00131975,3219.5,3219.1,1.03633896]
[1767690494818,0.00131975,3219.5,3219.1,1.03533896]
[1767690495135,0.00131975,3219.5,3219.1,1.03433896]
[1767690495345,0.00131975,3219.5,3218.8,1.05833896]
[1767690495512,0.00131975,3219.5,3218.8,1.47486222]
[1767690495700,0.00131975,3219.5,3218.9,1.05733896]
[1767690497633,1.03821559,3219.5,3218.8,0.001]
[1767690497798,1.05376285,3219.5,3218.8,0.001]
[1767690498135,1.03689584,3219.4,3218.8,0.001]
[1767690499926,1.85089584,3219.4,3218.8,0.001]
[1767690500129,4.95710121,3219.4,3218.8,0.001]
[1767690500329,1.03689584,3219.3,3218.8,0.001]
[1767690500835,4.14320419,3219.3,3218.8,0.001]
[1767690501203,1.03689584,3219.2,3218.5,1.05733896]
[1767690501438,1.03689584,3219.0,3218.1,0.001]
[1767690501606,0.01554726,3219.1,3218.1,0.001]
[1767690501607,1.03689584,3218.8,3218.1,0.001]
[1767690502712,1.03689584,3218.7,3218.1,0.001]
[1767690503327,1.03689584,3218.7,3217.8,1.05733896]
[1767690503839,1.0524431,3218.7,3217.8,1.05733896]
[1767690504545,0.00131975,3218.6,3217.8,1.05733896]
[1767690505225,1.8664431,3218.9,3217.9,1.05733896]
[1767690505429,0.814,3218.8,3217.9,1.05733896]
[1767690506918,0.814,3218.8,3218.2,1.05733896]
[1767690507510,3.92074809,3218.8,3218.2,1.05733896]
[1767690507941,0.814,3218.8,3218.2,1.05733896]
[1767690509540,0.814,3218.8,3218.1,0.001]
[1767690509541,1.0524431,3218.7,3218.1,0.001]
[1767690509741,1.0524431,3218.7,3217.6,1.05833896]
[1767690509742,1.03689584,3218.5,3217.6,1.05833896]
[1767690509942,1.03689584,3218.3,3217.3,1.05733896]
[1767690510120,0.01554726,3218.4,3217.3,1.05733896]
[1767690510121,1.03689584,3218.1,3217.3,1.05733896]
[1767690510847,1.03689584,3218.0,3217.0,1.05833896]
[1767690511142,1.85089584,3218.2,3217.3,1.08939753]
[1767690511348,1.03689584,3218.2,3217.4,1.08939753]
[1767690511532,0.814,3218.1,3217.4,1.08939753]
[1767690514628,1.85373374,3218.1,3217.4,1.08939753]
[1767690515678,13.2940542,3233.8,3217.4,1.08939753]
[1767690515679,0.002,3219.1,3217.5,1.08939753]
[1767690515822,0.01554726,3218.8,3218.2,1.08939753]
[1767690516024,0.01554726,3218.8,3217.8,1.08939753]
[1767690516220,1.055281,3219.0,3217.8,1.08939753]
[1767690516524,1.055281,3219.0,3217.9,1.27973728]
[1767690517122,1.055281,3219.0,3218.0,3.10752019]
[1767690517323,1.055281,3219.0,3218.0,4.19691772]
[1767690518057,1.055281,3219.0,3218.1,1.08939753]
[1767690518720,4.16187085,3219.0,3218.1,1.08939753]
[1767690518921,1.055281,3218.8,3217.7,1.08939753]
[1767690519226,1.055281,3218.8,3217.8,1.08939753]
[1767690520351,0.002,3218.7,3217.8,1.12047466]
[1767690521154,0.002,3218.7,3217.8,1.08939753]
[1767690521721,0.002,3218.7,3217.8,4.19708741]
[1767690521953,0.002,3218.7,3217.8,1.08939753]
[1767690522153,0.002,3218.7,3217.9,1.08939753]
[1767690522747,1.04173374,3218.7,3217.9,1.08939753]
[1767690524254,1.04173374,3218.7,3218.0,1.08939753]
[1767690524424,0.002,3218.7,3218.0,1.08939753]
[1767690526526,0.002,3218.7,3218.1,1.08939753]
[1767690527549,0.814,3218.9,3218.5,1.08939753]
[1767690532023,0.814,3218.9,3218.2,1.08939753]
[1767690532229,1.85373374,3218.9,3218.2,1.08939753]
[1767690532928,0.814,3218.9,3218.3,1.08939753]
[1767690533827,0.002,3218.6,3218.3,1.08939753]
[1767690534027,1.03973374,3218.8,3218.2,3.10732439]
[1767690535661,1.03973374,3218.8,3218.1,3.1073741]
[1767690535867,1.03973374,3218.8,3218.2,0.62148871]
[1767690536365,0.816,3218.9,3218.2,0.62148871]
[1767690536366,1.90983551,3218.9,3218.2,0.62148871]
[1767690537350,1.90983551,3218.9,3218.2,1.66745338]
[1767690538965,1.90983551,3218.9,3218.2,1.04596467]
[1767690540778,1.09383551,3218.8,3218.2,1.04596467]
[1767690541105,1.12958509,3218.5,3217.5,1.06348979]
[1767690541245,1.12958509,3218.5,3217.6,1.06348979]
[1767690542032,1.12958509,3218.4,3217.6,1.06348979]
[1767690546083,4.23673104,3218.4,3217.9,0.001]
[1767690546262,1.12958509,3218.3,3217.9,0.001]
[1767690547254,1.12958509,3218.5,3217.9,0.001]
[1767690547455,0.814,3218.7,3218.3,4.63101566]
[1767690547651,1.13158509,3218.9,3218.2,1.06348979]
[1767690547845,1.12958509,3218.8,3218.2,5.69450545]
[1767690548051,1.12958509,3218.8,3218.2,1.06348979]
[1767690548246,1.12958509,3218.8,3218.1,4.63101566]
[1767690548677,4.23635771,3218.8,3218.0,1.06348979]
[1767690549181,1.12958509,3218.8,3218.0,1.06348979]
[1767690549486,1.12958509,3218.7,3218.0,1.06348979]
[1767690549650,1.12958509,3218.7,3218.0,1.87748979]
[1767690550277,4.23647669,3218.7,3218.0,1.87748979]
[1767690550484,1.12958509,3218.7,3218.0,1.87748979]
[1767690551059,1.12958509,3218.7,3218.0,1.06348979]
[1767690552472,1.12958509,3218.6,3218.0,0.814]
[1767690553176,1.12958509,3218.6,3217.9,0.001]